{"text_format":"1","workbook":"xlsx","n_sheets":10,"sheets":["Export","Hinweise","Erläuterungen","Daten","DFG-FS","Druck","S1","S2","S3","S4"],"not_rendered":{"charts":0,"images":0,"macros":1,"external_links":0,"defined_names":0,"comments":0,"pivot_tables":0},"unopened":[],"bounds":{"document_bytes":16777216,"sheet_cells":100000,"rows_first":2000,"rows_last":500,"rows_between":2000,"halvings":0,"cell_chars":16384,"cell_head_chars":4096},"cells_cut":0,"cells_raw":0,"read":"whole","date_system":"1900"}

{"sheet":"Export","index":0,"n_rows":2,"n_cols":201,"rows_kept":2,"cut":false,"hidden":true,"merged":[]}
["Letzte Änderung",{"$f":"Daten!C1","v":"1. Projektleitende bzw. Antragsteller, Name"},{"$f":"Daten!C2","v":"1. Projektleitende bzw. Antragsteller, Vorname"},{"$f":"Daten!C3","v":"1. Projektleitende bzw. Antragsteller, ENr"},{"$f":"Daten!C4","v":"2. Projektleitende bzw. Antragsteller, Name"},{"$f":"Daten!C5","v":"2. Projektleitende bzw. Antragsteller, Vorname"},{"$f":"Daten!C6","v":"2. Projektleitende bzw. Antragsteller, ENr"},{"$f":"Daten!C7","v":"Verbundprojekt (nein)"},{"$f":"Daten!C8","v":"Verbundprojekt (ja)"},{"$f":"Daten!C9","v":"Verbundprojekt (Koordinator)"},{"$f":"Daten!C10","v":"Verbundprojekt (Partner/Teilnehmer)"},{"$f":"Daten!C11","v":"1. Projektteilnehmer Hohenheim, Name"},{"$f":"Daten!C12","v":"1. Projektteilnehmer Hohenheim, Vorname"},{"$f":"Daten!C13","v":"1. Projektteilnehmer Hohenheim, ENr"},{"$f":"Daten!C14","v":"2. Projektteilnehmer Hohenheim, Name"},{"$f":"Daten!C15","v":"2. Projektteilnehmer Hohenheim, Vorname"},{"$f":"Daten!C16","v":"2. Projektteilnehmer Hohenheim, ENr"},{"$f":"Daten!C17","v":"3. Projektteilnehmer Hohenheim, Name"},{"$f":"Daten!C18","v":"3. Projektteilnehmer Hohenheim, Vorname"},{"$f":"Daten!C19","v":"3. Projektteilnehmer Hohenheim, ENr"},{"$f":"Daten!C20","v":"4. Projektteilnehmer Hohenheim, Name"},{"$f":"Daten!C21","v":"4. Projektteilnehmer Hohenheim, Vorname"},{"$f":"Daten!C22","v":"4. Projektteilnehmer Hohenheim, ENr"},{"$f":"Daten!C23","v":"Anzahl externe Projektteilnehmer"},{"$f":"Daten!C24","v":"Beteiligte Länder"},{"$f":"Daten!C25","v":"1. Externer Projektteilnehmer, Einrichtung"},{"$f":"Daten!C26","v":"1. Externer Projektteilnehmer, Land"},{"$f":"Daten!C27","v":"1. Externer Projektteilnehmer, Name"},{"$f":"Daten!C28","v":"2. Externer Projektteilnehmer, Einrichtung"},{"$f":"Daten!C29","v":"2. Externer Projektteilnehmer, Land"},{"$f":"Daten!C30","v":"2. Externer Projektteilnehmer, Name"},{"$f":"Daten!C31","v":"3. Externer Projektteilnehmer, Einrichtung"},{"$f":"Daten!C32","v":"3. Externer Projektteilnehmer, Land"},{"$f":"Daten!C33","v":"3. Externer Projektteilnehmer, Name"},{"$f":"Daten!C34","v":"Administrative Ansprechpartner der Projektleitung, Name"},{"$f":"Daten!C35","v":"Administrative Ansprechpartner der Projektleitung, Vorname"},{"$f":"Daten!C36","v":"Administrative Ansprechpartner der Projektleitung, ENr"},{"$f":"Daten!C37","v":"Administrative Ansprechpartner der Projektleitung, E-Mail"},{"$f":"Daten!C38","v":"FeldC38"},{"$f":"Daten!C39","v":"FeldC39"},{"$f":"Daten!C40","v":"FeldC40"},{"$f":"Daten!C41","v":"FeldC41"},{"$f":"Daten!C42","v":"FeldC42"},{"$f":"Daten!C43","v":"FeldC43"},{"$f":"Daten!C44","v":"FeldC44"},{"$f":"Daten!C45","v":"FeldC45"},{"$f":"Daten!C46","v":"FeldC46"},{"$f":"Daten!C47","v":"FeldC47"},{"$f":"Daten!C48","v":"FeldC48"},{"$f":"Daten!C49","v":"FeldC49"},{"$f":"Daten!C50","v":"FeldC50"},{"$f":"Daten!E1","v":"Zuwendungsgeber/Auftraggeber"},{"$f":"Daten!E2","v":"Mittelherkunft öffentlich"},{"$f":"Daten!E3","v":"Mittelherkunft privat"},{"$f":"Daten!E4","v":"Formular Sponsoring liegt bei"},{"$f":"Daten!E5","v":"Trennungsrechnung liegt bei"},{"$f":"Daten!E6","v":"Vertrag / Auftrag / Sonstige Docs. liegen bei"},{"$f":"Daten!E7","v":"Keine Beziehung mit Zuwendungsgeber"},{"$f":"Daten!E8","v":"Mind. eine Beziehung mit Zuwendungsgeber"},{"$f":"Daten!E9","v":"Erklärung 1 (keine Beschaffung)"},{"$f":"Daten!E10","v":"Erklärung 1 (Beschaffung)"},{"$f":"Daten!E11","v":"Erklärung 1 Text"},{"$f":"Daten!E12","v":"Erklärung 2 (keine rechtliche Verbindung)"},{"$f":"Daten!E13","v":"Erklärung 2 (rechtliche Verbindung)"},{"$f":"Daten!E14","v":"Erklärung 2 Text"},{"$f":"Daten!E15","v":"Erklärung 3 (keine private Verbindung)"},{"$f":"Daten!E16","v":"Erklärung 3 (private Verbindung)"},{"$f":"Daten!E17","v":"Erklärung 3 Text"},{"$f":"Daten!E18","v":"Erklärung 4 (keine Verbindung beteiligter Personen)"},{"$f":"Daten!E19","v":"Erklärung 4 (Verbindung beteiligter Personen)"},{"$f":"Daten!E20","v":"Erklärung 4 Text"},{"$f":"Daten!E21","v":"Erklärung 5 (keine Nebenabreden)"},{"$f":"Daten!E22","v":"Einverständnis zur Veröffentlichung lieg vor (ja)"},{"$f":"Daten!E23","v":"Einverständnis zur Veröffentlichung lieg vor (nein)"},{"$f":"Daten!E24","v":"FeldE24"},{"$f":"Daten!E25","v":"FeldE25"},{"$f":"Daten!E26","v":"FeldE26"},{"$f":"Daten!E27","v":"FeldE27"},{"$f":"Daten!E28","v":"FeldE28"},{"$f":"Daten!E29","v":"FeldE29"},{"$f":"Daten!E30","v":"FeldE30"},{"$f":"Daten!E31","v":"FeldE31"},{"$f":"Daten!E32","v":"FeldE32"},{"$f":"Daten!E33","v":"FeldE33"},{"$f":"Daten!E34","v":"FeldE34"},{"$f":"Daten!E35","v":"FeldE35"},{"$f":"Daten!E36","v":"FeldE36"},{"$f":"Daten!E37","v":"FeldE37"},{"$f":"Daten!E38","v":"FeldE38"},{"$f":"Daten!E39","v":"FeldE39"},{"$f":"Daten!E40","v":"FeldE40"},{"$f":"Daten!E41","v":"FeldE41"},{"$f":"Daten!E42","v":"FeldE42"},{"$f":"Daten!E43","v":"FeldE43"},{"$f":"Daten!E44","v":"FeldE44"},{"$f":"Daten!E45","v":"FeldE45"},{"$f":"Daten!E46","v":"FeldE46"},{"$f":"Daten!E47","v":"FeldE47"},{"$f":"Daten!E48","v":"FeldE48"},{"$f":"Daten!E49","v":"FeldE49"},{"$f":"Daten!E50","v":"FeldE50"},{"$f":"Daten!G1","v":"Bezeichnung des Forungsvorhabens"},{"$f":"Daten!G2","v":"Förderkennzeichen"},{"$f":"Daten!G3","v":"Laufzeit von"},{"$f":"Daten!G4","v":"Laufzeit bis"},{"$f":"Daten!G5","v":"Anzahl Monate"},{"$f":"Daten!G6","v":"Drittmittel Jahr 1"},{"$f":"Daten!G7","v":"Drittmittelbetrag Jahr 1"},{"$f":"Daten!G8","v":"Drittmittel Jahr 2"},{"$f":"Daten!G9","v":"Drittmittelbetrag Jahr 2"},{"$f":"Daten!G10","v":"Drittmittel Jahr 3"},{"$f":"Daten!G11","v":"Drittmittelbetrag Jahr 3"},{"$f":"Daten!G12","v":"Drittmittel Jahr 4"},{"$f":"Daten!G13","v":"Drittmittelbetrag Jahr 4"},{"$f":"Daten!G14","v":"Drittmittel Jahr 5"},{"$f":"Daten!G15","v":"Drittmittelbetrag Jahr 5"},{"$f":"Daten!G16","v":"Drittmittel Jahr 6"},{"$f":"Daten!G17","v":"Drittmittelbetrag Jahr 6"},{"$f":"Daten!G18","v":"Drittmittel Jahr 7"},{"$f":"Daten!G19","v":"Drittmittelbetrag Jahr 7"},{"$f":"Daten!G20","v":"Drittmittel Jahr 8"},{"$f":"Daten!G21","v":"Drittmittelbetrag Jahr 8"},{"$f":"Daten!G22","v":"Drittmittel Jahr 9"},{"$f":"Daten!G23","v":"Drittmittelbetrag Jahr 9"},{"$f":"Daten!G24","v":"Drittmittelgesamt"},{"$f":"Daten!G25","v":"Es fallen kein Folgekosten an"},{"$f":"Daten!G26","v":"Es fallen Folgekosten an"},{"$f":"Daten!G27","v":"Betrag Folgekosten"},{"$f":"Daten!G28","v":"Erläuterungen Folgekosten"},{"$f":"Daten!G29","v":"Finanzierung Folgekosten"},{"$f":"Daten!G30","v":"Räumliche Unterbringung am Institut gesichert"},{"$f":"Daten!G31","v":"Räumliche Unterbringung am Institut nicht gesichert"},{"$f":"Daten!G32","v":"Zusatzräume sind beantragt und bewilligt"},{"$f":"Daten!G33","v":"Zusatzräume sind nicht beantragt und bewilligt"},{"$f":"Daten!G34","v":"Forschungstätigkeit"},{"$f":"Daten!G35","v":"uneigennütze Förderung durch Geldgeber"},{"$f":"Daten!G36","v":"keine uneigennütze Förderung durch Geldgeber"},{"$f":"Daten!G37","v":"Entspricht den Interessen des Geldgebers"},{"$f":"Daten!G38","v":"Entspricht nicht den Interessen des Geldgebers"},{"$f":"Daten!G39","v":"Rechte an Forschungsergebnissen Geldgeber"},{"$f":"Daten!G40","v":"Keine Rechte an Forschungsergebnissen Geldgeber"},{"$f":"Daten!G41","v":"Andere Rechte verbleiben an Uni "},{"$f":"Daten!G42","v":"Andere Rechte verbleiben nicht an Uni "},{"$f":"Daten!G43","v":"Anwendung gesicherter Erkenntnisse"},{"$f":"Daten!G44","v":"Spende"},{"$f":"Daten!G45","v":"Sponsoring"},{"$f":"Daten!G46","v":"Übernahme von Projektträgerschaft"},{"$f":"Daten!G47","v":"Sonstiges"},{"$f":"Daten!G48","v":"Sonstiges Text"},{"$f":"Daten!G49","v":"Weitere Angaben zur Summe"},{"$f":"Daten!G50","v":"FeldG50"},{"$f":"Daten!I1","v":"Kurzbeschreibung"},{"$f":"Daten!I2","v":"DFG Wissenschaftsbereich"},{"$f":"Daten!I3","v":"DFG Fachkollegium"},{"$f":"Daten!I4","v":"DFG Fach"},{"$f":"Daten!I5","v":"Geheimhaltungsvereinbarung liegt vor"},{"$f":"Daten!I6","v":"Geheimhaltungsvereinbarung liegt nicht vor"},{"$f":"Daten!I7","v":"Disserationen geplant"},{"$f":"Daten!I8","v":"Disserationen nicht geplant"},{"$f":"Daten!I9","v":"Themen Dissertationen"},{"$f":"Daten!I10","v":"Veröffentlichung auf Homepage"},{"$f":"Daten!I11","v":"Keine Veröffentlichung auf Homepage"},{"$f":"Daten!I12","v":"Veröffentlich auf Homepage, außer …"},{"$f":"Daten!I13","v":"Veröffentlich auf Homepage, außer … (Text)"},{"$f":"Daten!I14","v":"FZ Bioökonomie"},{"$f":"Daten!I15","v":"FZ Globale Ernährungssicherung"},{"$f":"Daten!I16","v":"FZ Gesundheitswissenschaften"},{"$f":"Daten!I17","v":"Ergänzende Angaben"},{"$f":"Daten!I18","v":"Nagoya-Protokoll ja"},{"$f":"Daten!I19","v":"Nagoya-Protokoll nein"},{"$f":"Daten!I20","v":"FeldI20"},{"$f":"Daten!I21","v":"FeldI21"},{"$f":"Daten!I22","v":"FeldI22"},{"$f":"Daten!I23","v":"FeldI23"},{"$f":"Daten!I24","v":"FeldI24"},{"$f":"Daten!I25","v":"FeldI25"},{"$f":"Daten!I26","v":"FeldI26"},{"$f":"Daten!I27","v":"FeldI27"},{"$f":"Daten!I28","v":"FeldI28"},{"$f":"Daten!I29","v":"FeldI29"},{"$f":"Daten!I30","v":"FeldI30"},{"$f":"Daten!I31","v":"FeldI31"},{"$f":"Daten!I32","v":"FeldI32"},{"$f":"Daten!I33","v":"FeldI33"},{"$f":"Daten!I34","v":"FeldI34"},{"$f":"Daten!I35","v":"FeldI35"},{"$f":"Daten!I36","v":"FeldI36"},{"$f":"Daten!I37","v":"FeldI37"},{"$f":"Daten!I38","v":"FeldI38"},{"$f":"Daten!I39","v":"FeldI39"},{"$f":"Daten!I40","v":"FeldI40"},{"$f":"Daten!I41","v":"FeldI41"},{"$f":"Daten!I42","v":"FeldI42"},{"$f":"Daten!I43","v":"FeldI43"},{"$f":"Daten!I44","v":"FeldI44"},{"$f":"Daten!I45","v":"FeldI45"},{"$f":"Daten!I46","v":"FeldI46"},{"$f":"Daten!I47","v":"FeldI47"},{"$f":"Daten!I48","v":"FeldI48"},{"$f":"Daten!I49","v":"FeldI49"},{"$f":"Daten!I50","v":"FeldI50"}]
[{"$f":"TEXT(Daten!B1,\"TT.MM.JJJJ HH:MM:SS\")","v":"00.01.1900 00:00:00"},{"$f":"Daten!D1","v":0},{"$f":"Daten!D2","v":0},{"$f":"Daten!D3","v":0},{"$f":"Daten!D4","v":0},{"$f":"Daten!D5","v":0},{"$f":"Daten!D6","v":0},{"$f":"Daten!D7","v":false},{"$f":"Daten!D8","v":false},{"$f":"Daten!D9","v":false},{"$f":"Daten!D10","v":false},{"$f":"Daten!D11","v":0},{"$f":"Daten!D12","v":0},{"$f":"Daten!D13","v":0},{"$f":"Daten!D14","v":0},{"$f":"Daten!D15","v":0},{"$f":"Daten!D16","v":0},{"$f":"Daten!D17","v":0},{"$f":"Daten!D18","v":0},{"$f":"Daten!D19","v":0},{"$f":"Daten!D20","v":0},{"$f":"Daten!D21","v":0},{"$f":"Daten!D22","v":0},{"$f":"Daten!D23","v":0},{"$f":"Daten!D24","v":0},{"$f":"Daten!D25","v":0},{"$f":"Daten!D26","v":0},{"$f":"Daten!D27","v":0},{"$f":"Daten!D28","v":0},{"$f":"Daten!D29","v":0},{"$f":"Daten!D30","v":0},{"$f":"Daten!D31","v":0},{"$f":"Daten!D32","v":0},{"$f":"Daten!D33","v":0},{"$f":"Daten!D34","v":0},{"$f":"Daten!D35","v":0},{"$f":"Daten!D36","v":0},{"$f":"Daten!D37","v":0},{"$f":"Daten!D38","v":0},{"$f":"Daten!D39","v":0},{"$f":"Daten!D40","v":0},{"$f":"Daten!D41","v":0},{"$f":"Daten!D42","v":0},{"$f":"Daten!D43","v":0},{"$f":"Daten!D44","v":0},{"$f":"Daten!D45","v":0},{"$f":"Daten!D46","v":0},{"$f":"Daten!D47","v":0},{"$f":"Daten!D48","v":0},{"$f":"Daten!D49","v":0},{"$f":"Daten!D50","v":0},{"$f":"Daten!F1","v":0},{"$f":"Daten!F2","v":false},{"$f":"Daten!F3","v":false},{"$f":"Daten!F4","v":false},{"$f":"Daten!F5","v":false},{"$f":"Daten!F6","v":false},{"$f":"Daten!F7","v":false},{"$f":"Daten!F8","v":false},{"$f":"Daten!F9","v":false},{"$f":"Daten!F10","v":false},{"$f":"Daten!F11","v":0},{"$f":"Daten!F12","v":false},{"$f":"Daten!F13","v":false},{"$f":"Daten!F14","v":0},{"$f":"Daten!F15","v":false},{"$f":"Daten!F16","v":false},{"$f":"Daten!F17","v":0},{"$f":"Daten!F18","v":false},{"$f":"Daten!F19","v":false},{"$f":"Daten!F20","v":0},{"$f":"Daten!F21","v":false},{"$f":"Daten!F22","v":false},{"$f":"Daten!F23","v":false},{"$f":"Daten!F24","v":0},{"$f":"Daten!F25","v":0},{"$f":"Daten!F26","v":0},{"$f":"Daten!F27","v":0},{"$f":"Daten!F28","v":0},{"$f":"Daten!F29","v":0},{"$f":"Daten!F30","v":0},{"$f":"Daten!F31","v":0},{"$f":"Daten!F32","v":0},{"$f":"Daten!F33","v":0},{"$f":"Daten!F34","v":0},{"$f":"Daten!F35","v":0},{"$f":"Daten!F36","v":0},{"$f":"Daten!F37","v":0},{"$f":"Daten!F38","v":0},{"$f":"Daten!F39","v":0},{"$f":"Daten!F40","v":0},{"$f":"Daten!F41","v":0},{"$f":"Daten!F42","v":0},{"$f":"Daten!F43","v":0},{"$f":"Daten!F44","v":0},{"$f":"Daten!F45","v":0},{"$f":"Daten!F46","v":0},{"$f":"Daten!F47","v":0},{"$f":"Daten!F48","v":0},{"$f":"Daten!F49","v":0},{"$f":"Daten!F50","v":0},{"$f":"Daten!H1","v":0},{"$f":"Daten!H2","v":0},{"$f":"Daten!H3","v":0},{"$f":"Daten!H4","v":0},{"$f":"Daten!H5","v":0},{"$f":"Daten!H6","v":0},{"$f":"Daten!H7","v":0},{"$f":"Daten!H8","v":0},{"$f":"Daten!H9","v":0},{"$f":"Daten!H10","v":0},{"$f":"Daten!H11","v":0},{"$f":"Daten!H12","v":0},{"$f":"Daten!H13","v":0},{"$f":"Daten!H14","v":0},{"$f":"Daten!H15","v":0},{"$f":"Daten!H16","v":0},{"$f":"Daten!H17","v":0},{"$f":"Daten!H18","v":0},{"$f":"Daten!H19","v":0},{"$f":"Daten!H20","v":0},{"$f":"Daten!H21","v":0},{"$f":"Daten!H22","v":0},{"$f":"Daten!H23","v":0},{"$f":"Daten!H24","v":0},{"$f":"Daten!H25","v":false},{"$f":"Daten!H26","v":false},{"$f":"Daten!H27","v":0},{"$f":"Daten!H28","v":0},{"$f":"Daten!H29","v":0},{"$f":"Daten!H30","v":false},{"$f":"Daten!H31","v":false},{"$f":"Daten!H32","v":false},{"$f":"Daten!H33","v":false},{"$f":"Daten!H34","v":false},{"$f":"Daten!H35","v":false},{"$f":"Daten!H36","v":false},{"$f":"Daten!H37","v":false},{"$f":"Daten!H38","v":false},{"$f":"Daten!H39","v":false},{"$f":"Daten!H40","v":false},{"$f":"Daten!H41","v":false},{"$f":"Daten!H42","v":false},{"$f":"Daten!H43","v":false},{"$f":"Daten!H44","v":false},{"$f":"Daten!H45","v":false},{"$f":"Daten!H46","v":false},{"$f":"Daten!H47","v":false},{"$f":"Daten!H48","v":0},{"$f":"Daten!H49","v":0},{"$f":"Daten!H50","v":0},{"$f":"Daten!J1","v":0},{"$f":"Daten!J2","v":0},{"$f":"Daten!J3","v":0},{"$f":"Daten!J4","v":0},{"$f":"Daten!J5","v":false},{"$f":"Daten!J6","v":false},{"$f":"Daten!J7","v":false},{"$f":"Daten!J8","v":false},{"$f":"Daten!J9","v":0},{"$f":"Daten!J10","v":false},{"$f":"Daten!J11","v":false},{"$f":"Daten!J12","v":false},{"$f":"Daten!J13","v":0},{"$f":"Daten!J14","v":false},{"$f":"Daten!J15","v":false},{"$f":"Daten!J16","v":false},{"$f":"Daten!J17","v":0},{"$f":"Daten!J18","v":false},{"$f":"Daten!J19","v":false},{"$f":"Daten!J20","v":0},{"$f":"Daten!J21","v":0},{"$f":"Daten!J22","v":0},{"$f":"Daten!J23","v":0},{"$f":"Daten!J24","v":0},{"$f":"Daten!J25","v":0},{"$f":"Daten!J26","v":0},{"$f":"Daten!J27","v":0},{"$f":"Daten!J28","v":0},{"$f":"Daten!J29","v":0},{"$f":"Daten!J30","v":0},{"$f":"Daten!J31","v":0},{"$f":"Daten!J32","v":0},{"$f":"Daten!J33","v":0},{"$f":"Daten!J34","v":0},{"$f":"Daten!J35","v":0},{"$f":"Daten!J36","v":0},{"$f":"Daten!J37","v":0},{"$f":"Daten!J38","v":0},{"$f":"Daten!J39","v":0},{"$f":"Daten!J40","v":0},{"$f":"Daten!J41","v":0},{"$f":"Daten!J42","v":0},{"$f":"Daten!J43","v":0},{"$f":"Daten!J44","v":0},{"$f":"Daten!J45","v":0},{"$f":"Daten!J46","v":0},{"$f":"Daten!J47","v":0},{"$f":"Daten!J48","v":0},{"$f":"Daten!J49","v":0},{"$f":"Daten!J50","v":0}]

{"sheet":"Hinweise","index":1,"n_rows":18,"n_cols":4,"rows_kept":18,"cut":false,"hidden":false,"merged":[[1,3,4,3],[6,3,12,3],[14,3,16,3]]}
["Datenerfassung gemäß Drittmittelrichtlinie, LHG §§ 13 und 41 und für das Vorhabenregister nach LHG § 41a",null,null,"Datenschutzhinweise"]
["Sie haben Drittmittel eingeworben - zu diesem Erfolg möchten wir Ihnen herzlich gratulieren und Ihnen im Namen der Universität für Ihr Engagement danken! Bitte zeigen Sie der Abteilung Wirtschaft und Finanzen (AW) nun die Einwerbung der Drittmittel mittels des vorliegenden Formulars „Drittmittelanzeige“ an.",null,null,"Mit diesem Formular können Sie Ihre Drittmittelanzeige stellen. Die darin anzugebenden Daten werden zur Bearbeitung der Anzeige und zur Erfassung im Vorhabenregister der Universität nach § 41a LHG verarbeitet."]
[" ·  Klicken Sie dazu bitte auf den Button unten rechts „Formular ausfüllen“."]
[" ·  Bitte füllen Sie alle abgefragten Informationen vollständig und richtig aus."]
[" ·  Klicken Sie auf der letzten Formularseite auf „Eingaben prüfen“."]
[" ·  Wenn das Formular vollständig ist, wird daraufhin der Button „Formular drucken“ aktiv. Klicken Sie diesen an, drucken Sie das"]
[" Formular aus und lassen es bitte die/den jeweilige/n Budgetverantwortliche/n (Institutsleitung) unterschreiben.",null,null,"Außerdem werden Ihre Angaben zum Projekt auf der Webseite der Universität in der dortigen Forschungsdatenbank veröffentlicht, wenn und soweit Sie damit einverstanden sind. Dies ist nicht verpflichtend. Dazu werden Sie auf der letzten Formularseite nach Ihrem Einverständnis in die Datenübernahme gefragt."]
[" ·  Speichern Sie danach das Formular ab."]
[" ·  Senden Sie bitte das unterzeichnete Papierformular und die ausgefüllte Exceldatei per Email an "]
[" drittmittelanzeige@verwaltung.uni-hohenheim.de. Vergessen Sie bitte nicht, eventuelle Anlagen beizufügen (Vertrag, Vollkosten-"]
[" kalkulation, Erklärungen, datenschutzrechtliche Einwilligungserklärung bei Sponsoring, Schenkung und Spende                      )"]
[" ·  Bei Rückfragen zum Ausfüllen des Formulars wenden Sie sich bitte an die Kolleginnen und Kollegen "]
[" der Drittmittelverwaltung (Tel: 22079, 23250 oder 24511)."]
[]
["Bitte beachten Sie auch die Hinweise und Erläuterungen auf der folgenden Registerkarte.",null,null,"Die als freiwillig gekennzeichneten Angaben, erleichtern uns aber die Bearbeitung. Die unterbleibende Angabe freiwilliger Daten oder die Nicht-Veröffentlichung auf der Webseite hat für Sie keine negativen Folgen."]
[]
["Hinweis: Zum Kopieren und Einfügen von Text verwenden Sie bitte die Tastenkombination [Strg]+[c] und [Strg]+[v]."]
[null,null,null,{"$f":"HYPERLINK(\"https://www.uni-hohenheim.de/datenschutz-drittmittelanzeige\",\"Weitere Hinweise zum Datenschutz sowie Ihren daraus folgenden Rechten finden Sie unter: https://www.uni-hohenheim.de/datenschutz-drittmittelanzeige\")","v":"Weitere Hinweise zum Datenschutz sowie Ihren daraus folgenden Rechten finden Sie unter: https://www.uni-hohenheim.de/datenschutz-drittmittelanzeige"}]

{"sheet":"Erläuterungen","index":2,"n_rows":8,"n_cols":2,"rows_kept":8,"cut":false,"hidden":false,"merged":[[8,0,8,1],[7,0,7,1]]}
["Begriff","Erläuterung"]
["Trennungsrechnung / Vollkostenkalkulation","Die Kalkulationstabelle finden Sie unter https://www.uni-hohenheim.de/forschungsfoerderung-auftragsforschung unter dem Stichwort \"Kalkulation“. Erläuterungen zum EU-Beihilferecht finden Sie unter https://www.uni-hohenheim.de/forschungsfoerderung-trennungsrechnung. Gern beraten Sie hierzu die Kolleg:innen aus der Abteilung Forschungsförderung (af@verwaltung.uni-hohenheim.de)."]
["Forschungstätigkeit                                                     ","Inhalt der Forschung ist die Gewinnung neuer wissensch. Erkenntnisse einschl. Folgenabschätzung dieser. Auch Forschungsaufträge, die anteilig die Anwendung gesicherter Erkenntnisse enthalten, können steuerfrei belassen werden, wenn der Forschungsanteil denjenigen der Anwendung gesicherter Erkenntnisse wesentlich überwiegt. Auch Anfertigung von Prototypen u. Nullserie gehören i.d.S. zum Bereich Forschung. Eine entgeltliche (steuer- u. trennungsrechnungspflichtige) Erbringung von Leistungen an Dritte i.R. eines F&E-Vorhabens ist grunds. gegeben, wenn dem Auftraggeber Rechte am Forschungsergebnis (Eigentums-, Nutzungs- o. Verwertungsrecht) eingeräumt werden u./o. die Veröffentlichungsrechte der Universität zugunsten des Auftraggebers eingeschränkt werden u. diese Rechteeinräumung bzw. Rechteeinschränkung gerade auch Hauptleistungspflicht ist, eine Zahlung von Geldern an die UHOH also gerade u. nur deshalb erfolgt, weil solche Rechte eingeräumt werden u./o. die UHOH entgeltlich eine Rechteeinschränkung hinnimmt."]
["Anwendung gesicherter Erkenntnisse","Von Anwendung gesicherter Erkenntnisse ist auszugehen, wenn Erkenntnisse, die zum allgemeinen und gesicherten Wissensstand des einschlägigen Fachgebiets gehören, in einer Weise angewendet werden, die nicht zu neuen wissenschaftlichen Erkenntnissen führt. Bei Routinemessungen, dem Routineeinsatz eines Ergebnisses und der Fertigung marktfähiger Produkte ist regelmäßig anzunehmen, dass sich die Tätigkeit auf die Anwendung gesicherter wissenschaftlicher Erkenntnisse beschränkt. Dies ist eine Vermutung, die im Einzelfall von der Einrichtung widerlegt werden kann. Bei der Anfertigung von Gutachten kommt es bei der Zuordnung auf Thema und Inhalt an. Gutachten, in denen lediglich gesicherte wissenschaftliche Erkenntnisse verwertet werden, gehören nicht zur Forschungstätigkeit."]
["Spende                                                                             ","Spenden sind freiwillige und unentgeltliche Aufwendungen in Form von Geldspenden, Sachspenden oder Leistungsspenden. Unentgeltlich heißt, es darf dabei kein Leistungsaustausch zugrunde liegen - der Spender leistet sozusagen umsonst. Erhält der Spender eine Gegenleistung, z. B. in Form von Werbung oder Öffentlichkeitsarbeit, liegt grundsätzlich keine Spende, sondern Sponsoring vor. Eine Zuwendungsbestätigung (Spendenbescheinigung) kann in diesen Fällen nicht erteilt werden. Keine Gegenleistung liegt beispielsweise vor, wenn der Spender zum Dank öffentlich geehrt oder der Name des Spenders genannt wird. D. h. die Erwähnung des Spendernamens ohne dessen Logo in Prospekten o. ä. wird in der Regel noch nicht als Gegenleistung angesehen und kann somit noch als Spende gewertet werden."]
["Sponsoring                                                                      ","Im Gegensatz zur Spende handelt es sich, wie oben erwähnt, beim Sponsoring um Zuwendungen von Geld-, Sach- oder Dienstleistungen - meist von Unternehmern - gegen die Gewährung von Rechten - meist Werbung - auf der Basis einer vertraglichen Vereinbarung."]
["Projektträgerschaft                                                     ","„Projektträgerschaft“ ist die fachliche und verwaltungsmäßige Betreuung und Abwicklung der Projektförderung durch Forschungseinrichtungen (Projektträger) im Auftrag Dritter. Zu den Aufgaben eines Projektträgers gehören u.a. die Prüfung und Beurteilung der Förderanträge der Forschungseinrichtungen, die eine Projektförderung beantragen, mit Entscheidungsvorschlag, Verwaltung der vom Zuwendungsgeber bereitgestellten Mittel, Kontrolle der Abwicklung des Vorhabens, Mitwirkung bei der Auswertung und Veröffentlichung der Arbeitsergebnisse. Die Projektträger erhalten vom Zuwendungsgeber ein Entgelt in Höhe der bei ihnen entstandenen Selbstkosten. Projektträgerschaften sind steuerpflichtige Betriebe gewerblicher Art."]
["Maßgeblich für die steuerliche Beurteilung von (Forschungs)vereinbarungen sind die Verträge zwischen der Hochschule für die jeweilige Universitätseinrichtung und dem Auftraggeber sowie die tatsächlichen Verhältnisse bei der Durchführung des Auftrages."]

{"sheet":"Daten","index":3,"n_rows":50,"n_cols":10,"rows_kept":50,"cut":false,"hidden":true,"merged":[]}
["Kontrollsumme",null,"1. Projektleitende bzw. Antragsteller, Name",null,"Zuwendungsgeber/Auftraggeber",null,"Bezeichnung des Forungsvorhabens",null,"Kurzbeschreibung"]
["Version",{"$f":"\"V1.3 (03/24)\"","v":"V1.3 (03/24)"},"1. Projektleitende bzw. Antragsteller, Vorname",null,"Mittelherkunft öffentlich",false,"Förderkennzeichen",null,"DFG Wissenschaftsbereich"]
["Workaround",false,"1. Projektleitende bzw. Antragsteller, ENr",null,"Mittelherkunft privat",false,"Laufzeit von",null,"DFG Fachkollegium"]
["Dateneingabe geprüft",false,"2. Projektleitende bzw. Antragsteller, Name",null,"Formular Sponsoring liegt bei",false,"Laufzeit bis",null,"DFG Fach"]
["",null,"2. Projektleitende bzw. Antragsteller, Vorname",null,"Trennungsrechnung liegt bei",false,"Anzahl Monate",null,"Geheimhaltungsvereinbarung liegt vor",false]
["",null,"2. Projektleitende bzw. Antragsteller, ENr",null,"Vertrag / Auftrag / Sonstige Docs. liegen bei",false,"Drittmittel Jahr 1",null,"Geheimhaltungsvereinbarung liegt nicht vor",false]
["",null,"Verbundprojekt (nein)",false,"Keine Beziehung mit Zuwendungsgeber",false,"Drittmittelbetrag Jahr 1",null,"Disserationen geplant",false]
["",null,"Verbundprojekt (ja)",false,"Mind. eine Beziehung mit Zuwendungsgeber",false,"Drittmittel Jahr 2",null,"Disserationen nicht geplant",false]
["",null,"Verbundprojekt (Koordinator)",false,"Erklärung 1 (keine Beschaffung)",false,"Drittmittelbetrag Jahr 2",null,"Themen Dissertationen"]
["",null,"Verbundprojekt (Partner/Teilnehmer)",false,"Erklärung 1 (Beschaffung)",false,"Drittmittel Jahr 3",null,"Veröffentlichung auf Homepage",false]
["",null,"1. Projektteilnehmer Hohenheim, Name",null,"Erklärung 1 Text",null,"Drittmittelbetrag Jahr 3",null,"Keine Veröffentlichung auf Homepage",false]
["",null,"1. Projektteilnehmer Hohenheim, Vorname",null,"Erklärung 2 (keine rechtliche Verbindung)",false,"Drittmittel Jahr 4",null,"Veröffentlich auf Homepage, außer …",false]
["",null,"1. Projektteilnehmer Hohenheim, ENr",null,"Erklärung 2 (rechtliche Verbindung)",false,"Drittmittelbetrag Jahr 4",null,"Veröffentlich auf Homepage, außer … (Text)"]
["",null,"2. Projektteilnehmer Hohenheim, Name",null,"Erklärung 2 Text",null,"Drittmittel Jahr 5",null,"FZ Bioökonomie",false]
["",null,"2. Projektteilnehmer Hohenheim, Vorname",null,"Erklärung 3 (keine private Verbindung)",false,"Drittmittelbetrag Jahr 5",null,"FZ Globale Ernährungssicherung",false]
["",null,"2. Projektteilnehmer Hohenheim, ENr",null,"Erklärung 3 (private Verbindung)",false,"Drittmittel Jahr 6",null,"FZ Gesundheitswissenschaften",false]
["",null,"3. Projektteilnehmer Hohenheim, Name",null,"Erklärung 3 Text",null,"Drittmittelbetrag Jahr 6",null,"Ergänzende Angaben"]
["",null,"3. Projektteilnehmer Hohenheim, Vorname",null,"Erklärung 4 (keine Verbindung beteiligter Personen)",false,"Drittmittel Jahr 7",null,"Nagoya-Protokoll ja",false]
["",null,"3. Projektteilnehmer Hohenheim, ENr",null,"Erklärung 4 (Verbindung beteiligter Personen)",false,"Drittmittelbetrag Jahr 7",null,"Nagoya-Protokoll nein",false]
[null,null,"4. Projektteilnehmer Hohenheim, Name",null,"Erklärung 4 Text",null,"Drittmittel Jahr 8",null,"FeldI20"]
[null,null,"4. Projektteilnehmer Hohenheim, Vorname",null,"Erklärung 5 (keine Nebenabreden)",false,"Drittmittelbetrag Jahr 8",null,"FeldI21"]
[null,null,"4. Projektteilnehmer Hohenheim, ENr",null,"Einverständnis zur Veröffentlichung lieg vor (ja)",false,"Drittmittel Jahr 9",null,"FeldI22"]
[null,null,"Anzahl externe Projektteilnehmer",null,"Einverständnis zur Veröffentlichung lieg vor (nein)",false,"Drittmittelbetrag Jahr 9",null,"FeldI23"]
[null,null,"Beteiligte Länder",null,"FeldE24",null,"Drittmittelgesamt",null,"FeldI24"]
[null,null,"1. Externer Projektteilnehmer, Einrichtung",null,"FeldE25",null,"Es fallen kein Folgekosten an",false,"FeldI25"]
[null,null,"1. Externer Projektteilnehmer, Land",null,"FeldE26",null,"Es fallen Folgekosten an",false,"FeldI26"]
[null,null,"1. Externer Projektteilnehmer, Name",null,"FeldE27",null,"Betrag Folgekosten",null,"FeldI27"]
[null,null,"2. Externer Projektteilnehmer, Einrichtung",null,"FeldE28",null,"Erläuterungen Folgekosten",null,"FeldI28"]
[null,null,"2. Externer Projektteilnehmer, Land",null,"FeldE29",null,"Finanzierung Folgekosten",null,"FeldI29"]
[null,null,"2. Externer Projektteilnehmer, Name",null,"FeldE30",null,"Räumliche Unterbringung am Institut gesichert",false,"FeldI30"]
["",null,"3. Externer Projektteilnehmer, Einrichtung",null,"FeldE31",null,"Räumliche Unterbringung am Institut nicht gesichert",false,"FeldI31"]
["",null,"3. Externer Projektteilnehmer, Land",null,"FeldE32",null,"Zusatzräume sind beantragt und bewilligt",false,"FeldI32"]
["",null,"3. Externer Projektteilnehmer, Name",null,"FeldE33",null,"Zusatzräume sind nicht beantragt und bewilligt",false,"FeldI33"]
["",null,"Administrative Ansprechpartner der Projektleitung, Name",null,"FeldE34",null,"Forschungstätigkeit",false,"FeldI34"]
["",null,"Administrative Ansprechpartner der Projektleitung, Vorname",null,"FeldE35",null,"uneigennütze Förderung durch Geldgeber",false,"FeldI35"]
["",null,"Administrative Ansprechpartner der Projektleitung, ENr",null,"FeldE36",null,"keine uneigennütze Förderung durch Geldgeber",false,"FeldI36"]
["",null,"Administrative Ansprechpartner der Projektleitung, E-Mail",null,"FeldE37",null,"Entspricht den Interessen des Geldgebers",false,"FeldI37"]
["",null,"FeldC38",null,"FeldE38",null,"Entspricht nicht den Interessen des Geldgebers",false,"FeldI38"]
[null,null,"FeldC39",null,"FeldE39",null,"Rechte an Forschungsergebnissen Geldgeber",false,"FeldI39"]
[null,null,"FeldC40",null,"FeldE40",null,"Keine Rechte an Forschungsergebnissen Geldgeber",false,"FeldI40"]
[null,null,"FeldC41",null,"FeldE41",null,"Andere Rechte verbleiben an Uni ",false,"FeldI41"]
[null,null,"FeldC42",null,"FeldE42",null,"Andere Rechte verbleiben nicht an Uni ",false,"FeldI42"]
[null,null,"FeldC43",null,"FeldE43",null,"Anwendung gesicherter Erkenntnisse",false,"FeldI43"]
[null,null,"FeldC44",null,"FeldE44",null,"Spende",false,"FeldI44"]
[null,null,"FeldC45",null,"FeldE45",null,"Sponsoring",false,"FeldI45"]
[null,null,"FeldC46",null,"FeldE46",null,"Übernahme von Projektträgerschaft",false,"FeldI46"]
[null,null,"FeldC47",null,"FeldE47",null,"Sonstiges",false,"FeldI47"]
["",null,"FeldC48",null,"FeldE48",null,"Sonstiges Text",null,"FeldI48"]
["",null,"FeldC49",null,"FeldE49",null,"Weitere Angaben zur Summe",null,"FeldI49"]
["",null,"FeldC50",null,"FeldE50",null,"FeldG50",null,"FeldI50"]

{"sheet":"DFG-FS","index":4,"n_rows":215,"n_cols":3,"rows_kept":215,"cut":false,"hidden":true,"merged":[]}
["Wissenschaftsbereich (Bitte auswählen)","Fachkollegium","Fach"]
["Geistes- und Sozialwissenschaften","Alte Kulturen","101-01  Ur- und Frühgeschichte (weltweit)"]
["Geistes- und Sozialwissenschaften","Alte Kulturen","101-02  Klassische Philologie"]
["Geistes- und Sozialwissenschaften","Alte Kulturen","101-03  Alte Geschichte"]
["Geistes- und Sozialwissenschaften","Alte Kulturen","101-04  Klassische Archäologie"]
["Geistes- und Sozialwissenschaften","Alte Kulturen","101-05  Ägyptische und Vorderasiatische Altertumswissenschaften"]
["Geistes- und Sozialwissenschaften","Geschichtswissenschaften","102-01  Mittelalterliche Geschichte"]
["Geistes- und Sozialwissenschaften","Geschichtswissenschaften","102-02  Frühneuzeitliche Geschichte"]
["Geistes- und Sozialwissenschaften","Geschichtswissenschaften","102-03  Neuere und Neueste Geschichte (einschl. Europäische Geschichte der Neuzeit und Außereuropäische Geschichte)"]
["Geistes- und Sozialwissenschaften","Geschichtswissenschaften","102-04  Wissenschaftsgeschichte"]
["Geistes- und Sozialwissenschaften","Kunst-, Musik-, Theater- und Medienwissenschaften","103-01  Kunstgeschichte"]
["Geistes- und Sozialwissenschaften","Kunst-, Musik-, Theater- und Medienwissenschaften","103-02  Musikwissenschaften"]
["Geistes- und Sozialwissenschaften","Kunst-, Musik-, Theater- und Medienwissenschaften","103-03  Theater- und Medienwissenschaften"]
["Geistes- und Sozialwissenschaften","Sprachwissenschaften","104-01  Allgemeine und Vergleichende Sprachwissenschaft, Typologie, Außereuropäische Sprachen"]
["Geistes- und Sozialwissenschaften","Sprachwissenschaften","104-02  Einzelsprachwissenschaften"]
["Geistes- und Sozialwissenschaften","Sprachwissenschaften","104-03  Historische Linguistik"]
["Geistes- und Sozialwissenschaften","Sprachwissenschaften","104-04  Angewandte Sprachwissenschaften, Experimentelle Linguistik, Computerlinguistik"]
["Geistes- und Sozialwissenschaften","Literaturwissenschaft","105-01  Ältere deutsche Literatur"]
["Geistes- und Sozialwissenschaften","Literaturwissenschaft","105-02  Neuere deutsche Literatur"]
["Geistes- und Sozialwissenschaften","Literaturwissenschaft","105-03  Europäische und Amerikanische Literaturen"]
["Geistes- und Sozialwissenschaften","Literaturwissenschaft","105-04  Allgemeine und vergleichende Literaturwissenschaft; Kulturwissenschaft"]
["Geistes- und Sozialwissenschaften","Sozial- und Kulturanthropologie, Außereuropäische Kulturen, Judaistik und Religionswissenschaft","106-01  Ethnologie und Europäische Ethnologie"]
["Geistes- und Sozialwissenschaften","Sozial- und Kulturanthropologie, Außereuropäische Kulturen, Judaistik und Religionswissenschaft","106-02  Asienbezogene Wissenschaften"]
["Geistes- und Sozialwissenschaften","Sozial- und Kulturanthropologie, Außereuropäische Kulturen, Judaistik und Religionswissenschaft","106-03  Afrika-, Amerika- und Ozeanienbezogene Wissenschaften"]
["Geistes- und Sozialwissenschaften","Sozial- und Kulturanthropologie, Außereuropäische Kulturen, Judaistik und Religionswissenschaft","106-04  Islamwissenschaften, Arabistik, Semitistik"]
["Geistes- und Sozialwissenschaften","Sozial- und Kulturanthropologie, Außereuropäische Kulturen, Judaistik und Religionswissenschaft","106-05  Religionswissenschaft und Judaistik"]
["Geistes- und Sozialwissenschaften","Theologie","107-01  Evangelische Theologie"]
["Geistes- und Sozialwissenschaften","Theologie","107-02  Katholische Theologie"]
["Geistes- und Sozialwissenschaften","Philosophie","108-01  Geschichte der Philosophie"]
["Geistes- und Sozialwissenschaften","Philosophie","108-02  Theoretische Philosophie"]
["Geistes- und Sozialwissenschaften","Philosophie","108-03  Praktische Philosophie"]
["Geistes- und Sozialwissenschaften","Erziehungswissenschaft und Bildungsforschung","109-01  Allgemeine und Historische Pädagogik"]
["Geistes- und Sozialwissenschaften","Erziehungswissenschaft und Bildungsforschung","109-02  Allgemeines und fachbezogenes Lehren und Lernen"]
["Geistes- und Sozialwissenschaften","Erziehungswissenschaft und Bildungsforschung","109-03  Bildungssysteme und Bildungsinstitutionen"]
["Geistes- und Sozialwissenschaften","Erziehungswissenschaft und Bildungsforschung","109-04  Pädagogische Sozial- und Organisationsforschung"]
["Geistes- und Sozialwissenschaften","Psychologie","110-01  Allgemeine, Biologische und Mathematische Psychologie"]
["Geistes- und Sozialwissenschaften","Psychologie","110-02  Entwicklungspsychologie und Pädagogische Psychologie"]
["Geistes- und Sozialwissenschaften","Psychologie","110-03  Sozialpsychologie und Arbeits- und Organisationspsychologie"]
["Geistes- und Sozialwissenschaften","Psychologie","110-04  Differentielle Psychologie, Klinische Psychologie, Medizinische Psychologie, Methoden"]
["Geistes- und Sozialwissenschaften","Sozialwissenschaften","111-01  Soziologische Theorie"]
["Geistes- und Sozialwissenschaften","Sozialwissenschaften","111-02  Empirische Sozialforschung"]
["Geistes- und Sozialwissenschaften","Sozialwissenschaften","111-03  Publizistik und Kommunikationswissenschaft"]
["Geistes- und Sozialwissenschaften","Sozialwissenschaften","111-04  Politikwissenschaft"]
["Geistes- und Sozialwissenschaften","Wirtschaftswissenschaften","112-01  Wirtschaftstheorie"]
["Geistes- und Sozialwissenschaften","Wirtschaftswissenschaften","112-02  Wirtschaftspolitik und Finanzwissenschaften"]
["Geistes- und Sozialwissenschaften","Wirtschaftswissenschaften","112-03  Betriebswirtschaftslehre"]
["Geistes- und Sozialwissenschaften","Wirtschaftswissenschaften","112-04  Statistik und Ökonometrie"]
["Geistes- und Sozialwissenschaften","Wirtschaftswissenschaften","112-05  Wirtschafts- und Sozialgeschichte"]
["Geistes- und Sozialwissenschaften","Rechtswissenschaften","113-01  Grundlagen des Rechts und der Rechtswissenschaft"]
["Geistes- und Sozialwissenschaften","Rechtswissenschaften","113-02  Privatrecht"]
["Geistes- und Sozialwissenschaften","Rechtswissenschaften","113-03  Öffentliches Recht"]
["Geistes- und Sozialwissenschaften","Rechtswissenschaften","113-04  Strafrecht, Strafprozessrecht"]
["Geistes- und Sozialwissenschaften","Rechtswissenschaften","113-05  Kriminologie"]
["Lebenswissenschaften","Grundlagen der Biologie und Medizin","201-01  Biochemie"]
["Lebenswissenschaften","Grundlagen der Biologie und Medizin","201-02  Biophysik"]
["Lebenswissenschaften","Grundlagen der Biologie und Medizin","201-03  Zellbiologie"]
["Lebenswissenschaften","Grundlagen der Biologie und Medizin","201-04  Strukturbiologie"]
["Lebenswissenschaften","Grundlagen der Biologie und Medizin","201-05  Allgemeine Genetik"]
["Lebenswissenschaften","Grundlagen der Biologie und Medizin","201-06  Entwicklungsbiologie"]
["Lebenswissenschaften","Grundlagen der Biologie und Medizin","201-07  Bioinformatik und Theoretische Biologie"]
["Lebenswissenschaften","Grundlagen der Biologie und Medizin","201-08  Anatomie"]
["Lebenswissenschaften","Pflanzenwissenschaften","202-01  Evolution und Systematik der Pflanzen und Pilze"]
["Lebenswissenschaften","Pflanzenwissenschaften","202-02  Pflanzenökologie und Ökosystemforschung"]
["Lebenswissenschaften","Pflanzenwissenschaften","202-03  Organismische Interaktionen und chemische Ökologie pflanzlicher Systeme"]
["Lebenswissenschaften","Pflanzenwissenschaften","202-04  Pflanzenphysiologie"]
["Lebenswissenschaften","Pflanzenwissenschaften","202-05  Biochemie und Biophysik der Pflanzen"]
["Lebenswissenschaften","Pflanzenwissenschaften","202-06  Zell- und Entwicklungsbiologie der Pflanzen"]
["Lebenswissenschaften","Pflanzenwissenschaften","202-07  Genetik der Pflanzen"]
["Lebenswissenschaften","Zoologie","203-01  Systematik und Morphologie der Tiere"]
["Lebenswissenschaften","Zoologie","203-02  Evolution, Anthropologie"]
["Lebenswissenschaften","Zoologie","203-03  Ökologie der Tiere, Biodiversität und Ökosystemforschung"]
["Lebenswissenschaften","Zoologie","203-04  Biologie des Verhaltens und der Sinne"]
["Lebenswissenschaften","Zoologie","203-05  Biochemie und Physiologie der Tiere"]
["Lebenswissenschaften","Zoologie","203-06  Evolutionäre Zell- und Entwicklungsbiologie der Tiere"]
["Lebenswissenschaften","Mikrobiologie, Virologie und Immunologie","204-01  Stoffwechselphysiologie, Biochemie und Genetik der Mikroorganismen"]
["Lebenswissenschaften","Mikrobiologie, Virologie und Immunologie","204-02  Mikrobielle Ökologie und Angewandte Mikrobiologie"]
["Lebenswissenschaften","Mikrobiologie, Virologie und Immunologie","204-03  Medizinische Mikrobiologie, Parasitologie, medizinische Mykologie und Hygiene, Molekulare Infektionsbiologie"]
["Lebenswissenschaften","Mikrobiologie, Virologie und Immunologie","204-04  Virologie"]
["Lebenswissenschaften","Mikrobiologie, Virologie und Immunologie","204-05  Immunologie"]
["Lebenswissenschaften","Medizin","205-01  Epidemiologie, Medizinische Biometrie, Medizinische Informatik"]
["Lebenswissenschaften","Medizin","205-02  Public Health, medizinische Versorgungsforschung, Sozialmedizin"]
["Lebenswissenschaften","Medizin","205-03  Humangenetik"]
["Lebenswissenschaften","Medizin","205-04  Physiologie"]
["Lebenswissenschaften","Medizin","205-05  Ernährungswissenschaften"]
["Lebenswissenschaften","Medizin","205-06  Pathologie"]
["Lebenswissenschaften","Medizin","205-07  Klinische Chemie und Pathobiochemie"]
["Lebenswissenschaften","Medizin","205-08  Pharmazie"]
["Lebenswissenschaften","Medizin","205-09  Pharmakologie"]
["Lebenswissenschaften","Medizin","205-10  Toxikologie, Arbeitsmedizin und Rechtsmedizin"]
["Lebenswissenschaften","Medizin","205-11  Anästhesiologie"]
["Lebenswissenschaften","Medizin","205-12  Kardiologie, Angiologie"]
["Lebenswissenschaften","Medizin","205-13  Pneumologie, Klinische Infektiologie"]
["Lebenswissenschaften","Medizin","205-14  Hämatologie, Onkologie, Transfusionsmedizin"]
["Lebenswissenschaften","Medizin","205-15  Gastroenterologie, Stoffwechsel"]
["Lebenswissenschaften","Medizin","205-16  Nephrologie"]
["Lebenswissenschaften","Medizin","205-17  Endokrinologie, Diabetologie"]
["Lebenswissenschaften","Medizin","205-18  Rheumatologie, Klinische Immunologie, Allergologie"]
["Lebenswissenschaften","Medizin","205-19  Dermatologie"]
["Lebenswissenschaften","Medizin","205-20  Kinder- und Jugendmedizin"]
["Lebenswissenschaften","Medizin","205-21  Frauenheilkunde und Geburtshilfe"]
["Lebenswissenschaften","Medizin","205-22  Reproduktionsmedizin/ -biologie"]
["Lebenswissenschaften","Medizin","205-23  Urologie"]
["Lebenswissenschaften","Medizin","205-24  Biogerontologie und Geriatrie"]
["Lebenswissenschaften","Medizin","205-25  Allgemein- und Viszeralchirurgie"]
["Lebenswissenschaften","Medizin","205-26  Herz-, Thorax-, Gefäßchirurgie"]
["Lebenswissenschaften","Medizin","205-27  Unfallchirurgie und Orthopädie"]
["Lebenswissenschaften","Medizin","205-28  Zahnheilkunde; Mund-, Kiefer- und Gesichtschirurgie"]
["Lebenswissenschaften","Medizin","205-29  Hals-Nasen-Ohrenheilkunde"]
["Lebenswissenschaften","Medizin","205-30  Radiologie und Nuklearmedizin"]
["Lebenswissenschaften","Medizin","205-31  Radioonkologie und Strahlenbiologie"]
["Lebenswissenschaften","Medizin","205-32  Biomedizinische Technik und Medizinische Physik"]
["Lebenswissenschaften","Neurowissenschaft","206-01  Molekulare Neurowissenschaft und Neurogenetik"]
["Lebenswissenschaften","Neurowissenschaft","206-02  Zelluläre Neurowissenschaft"]
["Lebenswissenschaften","Neurowissenschaft","206-03  Entwicklungsneurobiologie"]
["Lebenswissenschaften","Neurowissenschaft","206-04  Systemische Neurowissenschaft, Computational Neuroscience, Verhalten"]
["Lebenswissenschaften","Neurowissenschaft","206-05  Organismische Neurobiologie"]
["Lebenswissenschaften","Neurowissenschaft","206-06  Kognitive Neurowissenschaft"]
["Lebenswissenschaften","Neurowissenschaft","206-07  Molekulare und Zelluläre Neurologie, Neuropathologie"]
["Lebenswissenschaften","Neurowissenschaft","206-08  Klinische Neurowissenschaften I - Neurologie, Neurochirurgie, Neuroradiologie"]
["Lebenswissenschaften","Neurowissenschaft","206-09  Biologische und molekulare Psychiatrie"]
["Lebenswissenschaften","Neurowissenschaft","206-10  Klinische Neurowissenschaften II - Psychiatrie, Psychotherapie, Kinder- und Jugendspychiatrie"]
["Lebenswissenschaften","Neurowissenschaft","206-11  Klinische Neurowissenschaften III - Augenheilkunde"]
["Lebenswissenschaften","Agrar-, Forstwissenschaften und Tiermedizin","207-01  Bodenwissenschaften"]
["Lebenswissenschaften","Agrar-, Forstwissenschaften und Tiermedizin","207-02  Pflanzenbau und Agrartechnik"]
["Lebenswissenschaften","Agrar-, Forstwissenschaften und Tiermedizin","207-03  Pflanzenernährung"]
["Lebenswissenschaften","Agrar-, Forstwissenschaften und Tiermedizin","207-04  Ökologie von Agrarlandschaften"]
["Lebenswissenschaften","Agrar-, Forstwissenschaften und Tiermedizin","207-05  Pflanzenzüchtung"]
["Lebenswissenschaften","Agrar-, Forstwissenschaften und Tiermedizin","207-06  Phytomedizin"]
["Lebenswissenschaften","Agrar-, Forstwissenschaften und Tiermedizin","207-07  Agrarökonomie und -soziologie"]
["Lebenswissenschaften","Agrar-, Forstwissenschaften und Tiermedizin","207-08  Forstwissenschaften"]
["Lebenswissenschaften","Agrar-, Forstwissenschaften und Tiermedizin","207-09  Tierzucht, Tierhaltung und Tierhygiene"]
["Lebenswissenschaften","Agrar-, Forstwissenschaften und Tiermedizin","207-10  Tierernährung und Tierernährungsphysiologie"]
["Lebenswissenschaften","Agrar-, Forstwissenschaften und Tiermedizin","207-11  Grundlagen der Tiermedizin"]
["Lebenswissenschaften","Agrar-, Forstwissenschaften und Tiermedizin","207-12  Grundlagen von Pathogenese, Diagnostik, Therapie und Klinische Tiermedizin"]
["Naturwissenschaften","Molekülchemie","301-01  Anorganische Molekülchemie - Synthese, Charakterisierung, Theorie und Modellierung"]
["Naturwissenschaften","Molekülchemie","301-02  Organische Molekülchemie - Synthese, Charakterisierung, Theorie und Modellierung"]
["Naturwissenschaften","Chemische Festkörper- und Oberflächenforschung","302-01  Festkörper- und Oberflächenchemie, Materialsynthese"]
["Naturwissenschaften","Chemische Festkörper- und Oberflächenforschung","302-02  Physikalische Chemie von Festkörpern und Oberflächen, Materialcharakterisierung"]
["Naturwissenschaften","Chemische Festkörper- und Oberflächenforschung","302-03  Theorie und Modellierung"]
["Naturwissenschaften","Physikalische und Theoretische Chemie","303-01  Physikalische Chemie von Molekülen, Flüssigkeiten und Grenzflächen - Spektroskopie, Kinetik"]
["Naturwissenschaften","Physikalische und Theoretische Chemie","303-02  Allgemeine Theoretische Chemie"]
["Naturwissenschaften","Analytik, Methodenentwicklung (Chemie)","304-01  Analytik, Methodenentwicklung (Chemie)"]
["Naturwissenschaften","Biologische Chemie und Lebensmittelchemie","305-01  Biologische und Biomimetische Chemie"]
["Naturwissenschaften","Biologische Chemie und Lebensmittelchemie","305-02  Lebensmittelchemie"]
["Naturwissenschaften","Polymerforschung","306-01  Präparative und Physikalische Chemie von Polymeren"]
["Naturwissenschaften","Polymerforschung","306-02  Experimentelle und Theoretische Polymerphysik"]
["Naturwissenschaften","Polymerforschung","306-03  Polymermaterialien"]
["Naturwissenschaften","Physik der kondensierten Materie","307-01  Experimentelle Physik der kondensierten Materie"]
["Naturwissenschaften","Physik der kondensierten Materie","307-02  Theoretische Physik der kondensierten Materie"]
["Naturwissenschaften","Optik, Quantenoptik und Physik der Atome, Moleküle und Plasmen","308-01  Optik, Quantenoptik, Physik der Atome, Moleküle und Plasmen"]
["Naturwissenschaften","Teilchen, Kerne und Felder","309-01  Kern- und Elementarteilchenphysik, Quantenmechanik, Relativitätstheorie, Felder"]
["Naturwissenschaften","Statistische Physik, Weiche Materie, Biologische Physik, Nichtlineare Dynamik","310-01  Statistische Physik, Weiche Materie, Biologische Physik, Nichtlineare Dynamik"]
["Naturwissenschaften","Astrophysik und Astronomie","311-01  Astrophysik und Astronomie"]
["Naturwissenschaften","Mathematik","312-01  Mathematik"]
["Naturwissenschaften","Atmosphären-, Meeres- und Klimaforschung","313-01  Physik und Chemie der Atmosphäre"]
["Naturwissenschaften","Atmosphären-, Meeres- und Klimaforschung","313-02  Physik, Chemie und Biologie des Meeres"]
["Naturwissenschaften","Geologie und Paläontologie","314-01  Geologie, Ingenieurgeologie, Paläontologie"]
["Naturwissenschaften","Geophysik und Geodäsie","315-01  Physik des Erdkörpers"]
["Naturwissenschaften","Geophysik und Geodäsie","315-02  Geodäsie, Photogrammetrie, Fernerkundung, Geoinformatik, Kartographie"]
["Naturwissenschaften","Geochemie, Mineralogie und Kristallographie","316-01  Organische und Anorganische Geochemie, Biogeochemie, Mineralogie, Petrologie, Kristallographie, Lagerstättenkunde"]
["Naturwissenschaften","Geographie","317-01  Physische Geographie"]
["Naturwissenschaften","Geographie","317-02  Humangeographie"]
["Naturwissenschaften","Wasserforschung","318-01  Hydrogeologie, Hydrologie, Limnologie, Siedlungswasserwirtschaft, Wasserchemie, Integrierte Wasser-Ressourcen Bewirtschaftung"]
["Ingenieurwissenschaften","Produktionstechnik","401-01  Spanende Fertigungstechnik"]
["Ingenieurwissenschaften","Produktionstechnik","401-02  Ur- und Umformtechnik"]
["Ingenieurwissenschaften","Produktionstechnik","401-03  Füge-, Montage- und Trenntechnik"]
["Ingenieurwissenschaften","Produktionstechnik","401-04  Kunststofftechnik"]
["Ingenieurwissenschaften","Produktionstechnik","401-05  Produktionsorganisation und Betriebswissenschaften"]
["Ingenieurwissenschaften","Produktionstechnik","401-06  Werkzeugmaschinen und Produktionsautomatisierung"]
["Ingenieurwissenschaften","Mechanik und Konstruktiver Maschinenbau","402-01  Konstruktion, Maschinenelemente, Produktentwicklung"]
["Ingenieurwissenschaften","Mechanik und Konstruktiver Maschinenbau","402-02  Mechanik"]
["Ingenieurwissenschaften","Mechanik und Konstruktiver Maschinenbau","402-03  Leichtbau, Textiltechnik"]
["Ingenieurwissenschaften","Mechanik und Konstruktiver Maschinenbau","402-04  Akustik"]
["Ingenieurwissenschaften","Verfahrenstechnik, Technische Chemie","403-01  Chemische und Thermische Verfahrenstechnik"]
["Ingenieurwissenschaften","Verfahrenstechnik, Technische Chemie","403-02  Technische Chemie"]
["Ingenieurwissenschaften","Verfahrenstechnik, Technische Chemie","403-03  Mechanische Verfahrenstechnik"]
["Ingenieurwissenschaften","Verfahrenstechnik, Technische Chemie","403-04  Bioverfahrenstechnik"]
["Ingenieurwissenschaften","Wärmeenergietechnik, Thermische Maschinen, Strömungsmechanik","404-01  Energieverfahrenstechnik"]
["Ingenieurwissenschaften","Wärmeenergietechnik, Thermische Maschinen, Strömungsmechanik","404-02  Technische Thermodynamik"]
["Ingenieurwissenschaften","Wärmeenergietechnik, Thermische Maschinen, Strömungsmechanik","404-03  Strömungsmechanik"]
["Ingenieurwissenschaften","Wärmeenergietechnik, Thermische Maschinen, Strömungsmechanik","404-04  Strömungs- und Kolbenmaschinen"]
["Ingenieurwissenschaften","Werkstofftechnik","405-01  Metallurgische und thermische Prozesse und thermomechanische Behandlung von Werkstoffen"]
["Ingenieurwissenschaften","Werkstofftechnik","405-02  Keramische und metallische Sinterwerkstoffe"]
["Ingenieurwissenschaften","Werkstofftechnik","405-03  Verbundwerkstoffe"]
["Ingenieurwissenschaften","Werkstofftechnik","405-04  Mechanisches Verhalten von Konstruktionswerkstoffen"]
["Ingenieurwissenschaften","Werkstofftechnik","405-05  Beschichtungs- und Oberflächentechnik"]
["Ingenieurwissenschaften","Materialwissenschaft","406-01  Thermodynamik und Kinetik von Werkstoffen"]
["Ingenieurwissenschaften","Materialwissenschaft","406-02  Herstellung und Eigenschaften von Funktionsmaterialien"]
["Ingenieurwissenschaften","Materialwissenschaft","406-03  Mikrostrukturelle mechanische Eigenschaften von Materialien"]
["Ingenieurwissenschaften","Materialwissenschaft","406-04  Strukturierung und Funktionalisierung"]
["Ingenieurwissenschaften","Materialwissenschaft","406-05  Biomaterialien"]
["Ingenieurwissenschaften","Systemtechnik","407-01  Automatisierungstechnik, Regelungssysteme, Robotik, Mechatronik, Cyber Physical Systems"]
["Ingenieurwissenschaften","Systemtechnik","407-02  Messsysteme"]
["Ingenieurwissenschaften","Systemtechnik","407-03  Mikrosysteme"]
["Ingenieurwissenschaften","Systemtechnik","407-04  Verkehrs- und Transportsysteme, Logistik, Intelligenter und automatisierter Verkehr"]
["Ingenieurwissenschaften","Systemtechnik","407-05  Arbeitswissenschaft, Ergonomie, Mensch-Maschine-Systeme"]
["Ingenieurwissenschaften","Systemtechnik","407-06  Biomedizinische Systemtechnik"]
["Ingenieurwissenschaften","Elektrotechnik und Informationstechnik","408-01  Elektronische Halbleiter, Bauelemente und Schaltungen, Integrierte Systeme"]
["Ingenieurwissenschaften","Elektrotechnik und Informationstechnik","408-02  Nachrichten- und Hochfrequenztechnik, Kommunikationstechnik und -netze, Theoretische Elektrotechnik"]
["Ingenieurwissenschaften","Elektrotechnik und Informationstechnik","408-03  Elektrische Energieerzeugung, -übertragung, -verteilung und -anwendung"]
["Ingenieurwissenschaften","Informatik","409-01  Theoretische Informatik"]
["Ingenieurwissenschaften","Informatik","409-02  Softwaretechnik und Programmiersprachen"]
["Ingenieurwissenschaften","Informatik","409-03  Sicherheit und Verlässlichkeit"]
["Ingenieurwissenschaften","Informatik","409-04  Betriebs-, Kommunikations-, Datenbank- und verteilte Systeme"]
["Ingenieurwissenschaften","Informatik","409-05  Interaktive und intelligente Systeme, Bild- und Sprachverarbeitung, Computergraphik und Visualisierung"]
["Ingenieurwissenschaften","Informatik","409-06  Informationssysteme, Prozess- und Wissensmanagement"]
["Ingenieurwissenschaften","Informatik","409-07  Rechnerarchitekturen und eingebettete Systeme"]
["Ingenieurwissenschaften","Informatik","409-08  Massiv parallele und datenintensive Systeme"]
["Ingenieurwissenschaften","Bauwesen und Architektur","410-01  Architektur, Bau- und Konstruktionsgeschichte, Bauforschung, Ressourcenökonomie im Bauwesen"]
["Ingenieurwissenschaften","Bauwesen und Architektur","410-02  Städtebau/Stadtentwicklung, Raumplanung, Verkehrs- und Infrastrukturplanung, Landschaftsplanung"]
["Ingenieurwissenschaften","Bauwesen und Architektur","410-03  Baustoffwissenschaften, Bauchemie, Bauphysik"]
["Ingenieurwissenschaften","Bauwesen und Architektur","410-04  Konstruktiver Ingenieurbau, Bauinformatik und Baubetrieb"]
["Ingenieurwissenschaften","Bauwesen und Architektur","410-05  Angewandte Mechanik, Statik und Dynamik"]
["Ingenieurwissenschaften","Bauwesen und Architektur","410-06  Geotechnik, Wasserbau"]
["Keine Zuordnung möglich","Keine Zuordnung möglich","Keine Zuordnung möglich"]

{"sheet":"Druck","index":5,"n_rows":22,"n_cols":11,"rows_kept":22,"cut":false,"hidden":true,"merged":[[21,10,24,13],[5,0,5,4],[7,0,7,4],[9,0,9,4],[5,5,5,13],[7,5,7,13],[9,5,9,13],[11,0,11,4],[11,5,11,13]]}
["Universität Hohenheim"]
["Abteilung Wirtschaft und Finanzen (900)"]
["Haushalts-, Drittmittel- und Steuerangelegenheiten (AW 1)"]
[]
[]
["Projektleitender bzw. Antragsteller",null,null,null,null,{"$f":"Daten!D1&\", \"&Daten!D2","v":", "}]
[]
["Einrichtungsnummer:",null,null,null,null,{"$f":"Daten!D3","v":0}]
[]
["Zuwendungsgeber/Auftraggeber:",null,null,null,null,{"$f":"Daten!F1","v":0}]
[]
["Kontrollsumme:",null,null,null,null,"233B08A34.5"]
[]
[]
[]
[]
[]
[]
[]
[]
[]
[null,null,null,null,null,"Unterschrift des Antragstellers",null,null,null,null,"Unterschrift des Institutsleiters (Geschäftsführender Direktor)/ zwingend erforderlich, wenn nicht identisch mit dem Antragsteller"]

{"sheet":"S1","index":6,"n_rows":0,"n_cols":0,"rows_kept":0,"cut":false,"hidden":true,"merged":[]}

{"sheet":"S2","index":7,"n_rows":0,"n_cols":0,"rows_kept":0,"cut":false,"hidden":true,"merged":[]}

{"sheet":"S3","index":8,"n_rows":0,"n_cols":0,"rows_kept":0,"cut":false,"hidden":true,"merged":[]}

{"sheet":"S4","index":9,"n_rows":0,"n_cols":0,"rows_kept":0,"cut":false,"hidden":true,"merged":[]}